fUST/lending_fUST_20240906
["ID","MTS","AMOUNT","RATE_DAILY","PERIOD"]
[337372167,1725633060493,-356.13441258,0.00020273,2]
[337372168,1725633060502,-500.0,0.00020273,2]
[337372169,1725633060512,-500.0,0.00020273,2]
[337372170,1725633060527,-654.76,0.00020273,2]
[337372171,1725633060538,-500.0,0.00020273,2]
[337372172,1725633060549,-500.0,0.00020273,2]
[337372173,1725633060559,-151.0,0.00020273,2]
[337372174,1725633060568,-500.0,0.00020273,2]
[337372175,1725633060578,-500.0,0.00020273,2]
[337372176,1725633060587,-500.0,0.00020273,2]
[337372177,1725633060597,-500.0,0.00020273,2]
[337372178,1725633060608,-500.0,0.00020273,2]
[337372179,1725633060617,-500.0,0.00020273,2]
[337372180,1725633060628,-838.95,0.00020273,2]
[337372181,1725633060639,-530.03,0.00020273,2]
[337372182,1725633060650,-500.0,0.00020273,2]
[337372183,1725633060660,-500.0,0.00020273,2]
[337372184,1725633060670,-500.0,0.00020273,2]
[337372185,1725633060679,-887.2,0.00020273,2]
[337372186,1725633060689,-500.0,0.00020273,2]
[337372187,1725633060699,-1319.15,0.00020273,2]
[337372188,1725633060709,-500.0,0.00020273,2]
[337372189,1725633060719,-733.76,0.00020273,2]
[337372190,1725633060731,-778.88,0.00020273,2]
[337372191,1725633060742,-500.0,0.00020273,2]
[337372192,1725633060752,-151.671406,0.00020273,2]
[337372193,1725633060763,-808.090116,0.00020273,2]
[337372194,1725633060777,-1079.32,0.00020273,2]
[337372195,1725633060787,-808.090116,0.00020273,2]
[337372196,1725633060798,-500.0,0.00020273,2]
[337372197,1725633060808,-151.0,0.00020273,2]
[337372198,1725633060819,-500.0,0.00020273,2]
[337372199,1725633060829,-500.0,0.00020273,2]
[337372200,1725633060839,-540.63110151,0.00020273,2]
[337372201,1725633060848,-500.0,0.00020273,2]
[337372202,1725633060859,-500.0,0.00020273,2]
[337372203,1725633060870,-500.0,0.00020273,2]
[337372204,1725633060880,-500.0,0.00020273,2]
[337372205,1725633060891,-500.0,0.00020273,2]
[337372206,1725633060900,-604.59,0.00020273,2]
[337372207,1725633060910,-500.0,0.00020273,2]
[337372208,1725633060923,-500.0,0.00020273,2]
[337372209,1725633060932,-500.0,0.00020273,2]
[337372210,1725633060942,-1694.83,0.00020273,2]
[337372211,1725633060952,-500.0,0.00020273,2]
[337372212,1725633060962,-500.0,0.00020273,2]
[337372213,1725633060972,-1172.36,0.00020273,2]
[337372214,1725633060982,-500.0,0.00020273,2]
[337372215,1725633060991,-500.0,0.00020273,2]
[337372216,1725633061004,-500.0,0.00020273,2]
[337372217,1725633061015,-500.0,0.00020273,2]
[337372218,1725633061029,-1096.18,0.00020273,2]
[337372219,1725633061038,-500.0,0.00020273,2]
[337372220,1725633061051,-500.0,0.00020273,2]
[337372221,1725633061062,-1295.54,0.00020273,2]
[337372222,1725633061073,-500.0,0.00020273,2]
[337372223,1725633061083,-500.0,0.00020273,2]
[337372224,1725633061093,-500.0,0.00020273,2]
[337372225,1725633061103,-500.0,0.00020273,2]
[337372226,1725633061112,-542.16,0.00020273,2]
[337372227,1725633061123,-824.9,0.00020273,2]
[337372228,1725633061134,-491.38170285,0.00020273,2]
[337372229,1725633061146,-487.37135,0.00020273,2]
[337372230,1725633061156,-500.0,0.00020273,2]
[337372231,1725633061166,-151.0,0.00020273,2]
[337372232,1725633061175,-487.37135,0.00020273,2]
[337372233,1725633061185,-500.0,0.00020273,2]
[337372234,1725633061195,-500.0,0.00020273,2]
[337372235,1725633061205,-208.211729,0.00020273,2]
[337372236,1725633061214,-1372.26,0.00020273,2]
[337372237,1725633061224,-208.211729,0.00020273,2]
[337372238,1725633061233,-500.0,0.00020273,2]
[337372239,1725633061243,-875.93,0.00020273,2]
[337372240,1725633061253,-500.0,0.00020273,2]
[337372241,1725633061263,-500.0,0.00020273,2]
[337372242,1725633061277,-500.0,0.00020273,2]
[337372243,1725633061287,-938.14,0.00020273,2]
[337372244,1725633061297,-500.0,0.00020273,2]
[337372245,1725633061307,-538.21,0.00020273,2]
[337372246,1725633061317,-500.0,0.00020273,2]
[337372247,1725633061328,-1940.83,0.00020273,2]
[337372248,1725633061338,-967.41,0.00020273,2]
[337372249,1725633061348,-500.0,0.00020273,2]
[337372250,1725633061358,-500.0,0.00020273,2]
[337372251,1725633061525,-500.0,0.00020273,2]
[337372252,1725633061556,-1123.56,0.00020273,2]
[337372253,1725633061566,-500.0,0.00020273,2]
[337372254,1725633061576,-1551.08,0.00020273,2]
[337372255,1725633061586,-1400.39,0.00020273,2]
[337372256,1725633061596,-500.0,0.00020273,2]
[337372257,1725633061606,-895.372438,0.00020273,2]
[337372258,1725633061616,-500.0,0.00020273,2]
[337372259,1725633061626,-895.372438,0.00020273,2]
[337372260,1725633061636,-872.73,0.00020273,2]
[337372261,1725633061645,-500.0,0.00020273,2]
[337372262,1725633061655,-500.0,0.00020273,2]
[337372263,1725633061665,-151.0,0.00020273,2]
[337372264,1725633061674,-500.0,0.00020273,2]
[337372265,1725633061684,-1118.58,0.00020273,2]
[337372266,1725633061693,-500.0,0.00020273,2]
[337372267,1725633061703,-1742.36,0.00020273,2]
[337372268,1725633061713,-1196.57,0.00020273,2]
[337372269,1725633061722,-588.87,0.00020273,2]
[337372270,1725633061731,-500.0,0.00020273,2]
[337372271,1725633061742,-1193.407379,0.00020273,2]
[337372272,1725633061751,-500.0,0.00020273,2]
[337372273,1725633061761,-1205.47,0.00020273,2]
[337372274,1725633061774,-151.0,0.00020273,2]
[337372275,1725633061783,-1193.407379,0.00020273,2]
[337372276,1725633061793,-1576.49,0.00020273,2]
[337372277,1725633061802,-669.78,0.00020273,2]
[337372278,1725633061811,-500.0,0.00020273,2]
[337372279,1725633061822,-1881.02,0.00020273,2]
[337372280,1725633061833,-500.0,0.00020273,2]
[337372281,1725633061843,-500.0,0.00020273,2]
[337372282,1725633061853,-2921.03,0.00020273,2]
[337372283,1725633061863,-500.0,0.00020273,2]
[337372284,1725633061872,-500.0,0.00020273,2]
[337372285,1725633061883,-500.0,0.00020273,2]
[337372286,1725633061892,-500.0,0.00020273,2]
[337372287,1725633061902,-500.0,0.00020273,2]
[337372288,1725633061912,-500.0,0.00020273,2]
[337372289,1725633061925,-1113.21,0.00020273,2]
[337372290,1725633061935,-5040.87,0.00020273,2]
[337372291,1725633061945,-500.0,0.00020273,2]
[337372292,1725633061955,-1367.3,0.00020273,2]
[337372293,1725633061966,-1779.99,0.00020273,2]
[337372294,1725633061978,-500.0,0.00020273,2]
[337372295,1725633061987,-500.0,0.00020273,2]
[337372296,1725633061998,-500.0,0.00020273,2]
[337372297,1725633062008,-61.93126478,0.00020273,2]
[337372298,1725633062259,-269.46541023,0.00020273,2]
[337372299,1725633062269,-2052.33,0.00020273,2]
[337372300,1725633062283,-1835.81,0.00020273,2]
[337372301,1725633062294,-894.29,0.00020273,2]
[337372302,1725633062304,-500.0,0.00020273,2]
[337372303,1725633062316,-500.0,0.00020273,2]
[337372304,1725633062328,-2311.24,0.00020273,2]
[337372305,1725633062338,-500.0,0.00020273,2]
[337372306,1725633062348,-500.0,0.00020273,2]
[337372307,1725633062358,-1904.19,0.00020273,2]
[337372308,1725633062368,-825.48,0.00020273,2]
[337372309,1725633062378,-500.0,0.00020273,2]
[337372310,1725633062388,-500.0,0.00020273,2]
[337372311,1725633062397,-500.0,0.00020273,2]
[337372312,1725633062406,-1074.86,0.00020273,2]
[337372313,1725633062417,-500.0,0.00020273,2]
[337372314,1725633062426,-539.08,0.00020273,2]
[337372315,1725633062435,-118.63657295,0.00020273,2]
[337372316,1725633062447,-831.13497296,0.00020273,2]
[337372317,1725633062461,-460.87845409,0.00020273,2]
[337372318,1725633062470,-500.0,0.00020273,2]
[337372319,1725633062481,-500.0,0.00020273,2]
[337372320,1725633062492,-500.0,0.00020273,2]
[337372321,1725633062501,-1156.0,0.00020273,2]
[337372322,1725633062511,-1951.7,0.00020273,2]
[337372323,1725633062520,-1221.14,0.00020273,2]
[337372324,1725633062533,-1908.07,0.00020273,2]
[337372325,1725633062543,-500.0,0.00020273,2]
[337372326,1725633062553,-1392.43,0.00020273,2]
[337372327,1725633062563,-500.0,0.00020273,2]
[337372328,1725633062572,-965.53,0.00020273,2]
[337372329,1725633062582,-500.0,0.00020273,2]
[337372330,1725633062591,-1278.34,0.00020273,2]
[337372331,1725633062601,-702.2,0.00020273,2]
[337372332,1725633062611,-1529.39,0.00020273,2]
[337372333,1725633062621,-1145.58,0.00020273,2]
[337372334,1725633062631,-500.0,0.00020273,2]
[337372335,1725633062640,-500.0,0.00020273,2]
[337372336,1725633062649,-500.0,0.00020273,2]
[337372337,1725633062659,-500.0,0.00020273,2]
[337372338,1725633062668,-799.46,0.00020273,2]
[337372339,1725633062678,-1543.19,0.00020273,2]
[337372340,1725633062688,-3100.43,0.00020273,2]
[337372341,1725633062697,-500.0,0.00020273,2]
[337372342,1725633062707,-963.32,0.00020273,2]
[337372343,1725633062716,-500.0,0.00020273,2]
[337372344,1725633062726,-500.0,0.00020273,2]
[337372345,1725633062735,-369.15582795,0.00020273,2]
[337372346,1725633062745,-602.82626132,0.00020273,2]
[337372347,1725633062754,-151.0,0.00020273,2]
[337372348,1725633062764,-500.0,0.00020273,2]
[337372349,1725633062778,-763.75,0.00020273,2]
[337372350,1725633062787,-1876.47,0.00020273,2]
[337372351,1725633062796,-151.0,0.00020273,2]
[337372352,1725633062806,-895.81,0.00020273,2]
[337372353,1725633062816,-2191.72,0.00020273,2]
[337372354,1725633062825,-968.67,0.00020273,2]
[337372355,1725633062834,-26723.9,0.00020273,2]
[337372356,1725633062844,-655.35,0.00020273,2]
[337372357,1725633062853,-563.11,0.00020273,2]
[337372358,1725633062863,-589.03,0.00020273,2]
[337372359,1725633062872,-692.56,0.00020273,2]
[337372360,1725633062882,-500.0,0.00020273,2]
[337372361,1725633062893,-500.0,0.00020273,2]
[337372362,1725633062903,-860.98,0.00020273,2]
[337372363,1725633062914,-1390.31,0.00020273,2]
[337372364,1725633062927,-2071.2,0.00020273,2]
[337372365,1725633062937,-500.0,0.00020273,2]
[337372366,1725633062947,-151.0,0.00020273,2]
[337372367,1725633062956,-2158.41,0.00020273,2]
[337372368,1725633062967,-1100.83,0.00020273,2]
[337372369,1725633062976,-2239.96,0.00020273,2]
[337372370,1725633062986,-455.46420631,0.00020273,2]
[337372371,1725633062996,-500.0,0.00020273,2]
[337372372,1725633063007,-807.14,0.00020273,2]
[337372373,1725633063017,-650.79,0.00020273,2]
[337372374,1725633063031,-500.0,0.00020273,2]
[337372375,1725633063042,-844.65,0.00020273,2]
[337372376,1725633063053,-500.0,0.00020273,2]
[337372377,1725633063062,-151.0,0.00020273,2]
[337372378,1725633063072,-500.0,0.00020273,2]
[337372379,1725633063083,-690.63,0.00020273,2]
[337372380,1725633063093,-500.0,0.00020273,2]
[337372381,1725633063103,-500.0,0.00020273,2]
[337372382,1725633063113,-2162.49,0.00020273,2]
[337372383,1725633063123,-500.0,0.00020273,2]
[337372384,1725633063133,-1964.97,0.00020273,2]
[337372385,1725633063144,-151.0,0.00020273,2]
[337372386,1725633063154,-500.0,0.00020273,2]
[337372387,1725633063164,-2354.95,0.00020273,2]
[337372388,1725633063174,-1852.49,0.00020273,2]
[337372389,1725633063184,-2259.42,0.00020273,2]
[337372390,1725633063196,-2207.22,0.00020273,2]
[337372391,1725633063206,-500.0,0.00020273,2]
[337372392,1725633063216,-500.0,0.00020273,2]
[337372393,1725633063227,-500.0,0.00020273,2]
[337372394,1725633063237,-532.06,0.00020273,2]
[337372395,1725633063249,-721.34,0.00020273,2]
[337372396,1725633063260,-500.0,0.00020273,2]
[337372397,1725633063270,-2347.82,0.00020273,2]
[337372398,1725633063288,-500.0,0.00020273,2]
[337372399,1725633063298,-500.0,0.00020273,2]
[337372400,1725633063308,-500.0,0.00020273,2]
[337372401,1725633063318,-1078.21,0.00020273,2]
[337372402,1725633063328,-1767.21,0.00020273,2]
[337372403,1725633063339,-500.0,0.00020273,2]
[337372404,1725633063348,-1128.62,0.00020273,2]
[337372405,1725633063358,-2069.82525033,0.00020273,2]
[337372406,1725633063370,-36048.55830895,0.00020273,2]
[337372407,1725633063383,-4936.77,0.00020273,2]
[337372408,1725633063395,-1282.13784,0.00020273,2]
[337372409,1725633063589,-3931.13902734,0.00019178,2]
[337372410,1725633063602,-4686.4504,0.00019178,2]
[337372411,1725633063618,-57.83057266,0.00019178,2]
[337372412,1725633063629,-215.10891778,0.00019178,2]
[337372413,1725633063642,-284.89108222,0.00019178,2]
[337372414,1725633063651,-8675.42,0.00019452,2]
[337372415,1725633063663,-8675.42,0.00019726,2]
[337372416,1725633063673,-8675.42,0.0002,2]
[337372417,1725633063683,-6004.14860072,0.00020273,2]
[337372418,1725633063692,-1105.27,0.00020273,2]
[337372419,1725633063702,-500.0,0.00020273,2]
[337372420,1725633063712,-44627.42,0.00020273,2]
[337372421,1725633063723,-500.0,0.00020273,2]
[337372422,1725633063734,-1400.82,0.00020273,2]
[337372423,1725633063744,-2862.51,0.00020273,2]
[337372424,1725633063754,-500.0,0.00020273,2]
[337372425,1725633063764,-500.0,0.00020273,2]
[337372426,1725633063777,-549.29,0.00020273,2]
[337372427,1725633063788,-8675.42,0.00020273,2]
[337372428,1725633063799,-349.25764419,0.00020422,2]
[337372429,1725633063811,-497.45807095,0.00020547,2]
[337372430,1725633063821,-500.0,0.00020547,2]
[337372431,1725633063830,-604.31032308,0.00020547,2]
[337372432,1725633063841,-425.91705448,0.00020547,2]
[337372433,1725633063851,-500.0,0.00020547,2]
[337372434,1725633063861,-500.0,0.00020547,2]
[337372435,1725633063871,-500.0,0.00020547,2]
[337372436,1725633063936,-615.56,0.00020547,2]
[337372437,1725633063946,-500.0,0.00020547,2]
[337372438,1725633063957,-151.0,0.00020547,2]
[337372439,1725633063967,-1254.49,0.00020547,2]
[337372440,1725633063977,-424.47290395,0.00020547,2]
[337372441,1725633063988,-500.0,0.00020547,2]
[337372442,1725633064000,-500.0,0.00020547,2]
[337372443,1725633064010,-509.23081384,0.00020547,2]
[337372444,1725633064019,-500.0,0.00020547,2]
[337372445,1725633064032,-500.0,0.00020547,2]
[337372446,1725633064041,-500.0,0.00020547,2]
[337372447,1725633064051,-1001.98,0.00020547,2]
[337372448,1725633064062,-487.44850553,0.00020547,2]
[337372449,1725633064073,-500.0,0.00020547,2]
[337372450,1725633064083,-151.0,0.00020547,2]
[337372451,1725633064095,-500.0,0.00020547,2]
[337372452,1725633064106,-574.3,0.00020547,2]
[337372453,1725633064116,-500.0,0.00020547,2]
[337372454,1725633064126,-500.0,0.00020547,2]
[337372455,1725633064136,-500.0,0.00020547,2]
[337372456,1725633064147,-500.0,0.00020547,2]
[337372457,1725633064156,-500.0,0.00020547,2]
[337372458,1725633064166,-500.0,0.00020547,2]
[337372459,1725633064175,-500.0,0.00020547,2]
[337372460,1725633064185,-500.0,0.00020547,2]
[337372461,1725633064197,-1066.78,0.00020547,2]
[337372462,1725633064207,-500.0,0.00020547,2]
[337372463,1725633064217,-679.51,0.00020547,2]
[337372464,1725633064228,-503.71916604,0.00020547,2]
[337372465,1725633064237,-576.26226646,0.00020547,2]
[337372466,1725633064248,-1480.16,0.00020547,2]
[337372467,1725633064258,-513.67779136,0.00020547,2]
[337372468,1725633064268,-500.0,0.00020547,2]
[337372469,1725633064286,-533.57,0.00020547,2]
[337372470,1725633064297,-500.0,0.00020547,2]
[337372471,1725633064307,-500.0,0.00020547,2]
[337372472,1725633064317,-500.0,0.00020547,2]
[337372473,1725633064328,-939.26,0.00020547,2]
[337372474,1725633064338,-570.84,0.00020547,2]
[337372475,1725633064349,-522.66,0.00020547,2]
[337372476,1725633064359,-151.0,0.00020547,2]
[337372477,1725633064369,-500.0,0.00020547,2]
[337372478,1725633064379,-960.52,0.00020547,2]
[337372479,1725633064389,-530.57,0.00020547,2]
[337372480,1725633064400,-548.63,0.00020547,2]
[337372481,1725633064410,-500.0,0.00020547,2]
[337372482,1725633064420,-500.0,0.00020547,2]
[337372483,1725633064430,-500.0,0.00020547,2]
[337372484,1725633064441,-500.0,0.00020547,2]
[337372485,1725633064451,-516.52,0.00020547,2]
[337372486,1725633064462,-500.0,0.00020547,2]
[337372487,1725633064486,-500.0,0.00020547,2]
[337372488,1725633064497,-187.03376602,0.00020547,2]
[337372489,1725633064508,-1450.39,0.00020547,2]
[337372490,1725633064518,-500.0,0.00020547,2]
[337372491,1725633064534,-500.0,0.00020547,2]
[337372492,1725633064544,-784.65,0.00020547,2]
[337372493,1725633064556,-500.0,0.00020547,2]
[337372494,1725633064566,-500.0,0.00020547,2]
[337372495,1725633064576,-1351.9,0.00020547,2]
[337372496,1725633064587,-500.0,0.00020547,2]
[337372497,1725633064597,-626.01,0.00020547,2]
[337372498,1725633064606,-500.0,0.00020547,2]
[337372499,1725633064617,-1291.72,0.00020547,2]
[337372500,1725633064628,-572.81,0.00020547,2]
[337372501,1725633064642,-569.27,0.00020547,2]
[337372502,1725633064655,-500.0,0.00020547,2]
[337372503,1725633064666,-500.0,0.00020547,2]
[337372504,1725633064675,-500.0,0.00020547,2]
[337372505,1725633064686,-670.98,0.00020547,2]
[337372506,1725633064696,-286.19316336,0.00020547,2]
[337372507,1725633064706,-540.59,0.00020547,2]
[337372508,1725633064716,-1013.06,0.00020547,2]
[337372509,1725633064725,-503.06,0.00020547,2]
[337372510,1725633064736,-500.0,0.00020547,2]
[337372511,1725633064746,-542.06,0.00020547,2]
[337372512,1725633064756,-669.88,0.00020547,2]
[337372513,1725633064766,-606.31,0.00020547,2]
[337372514,1725633064779,-500.0,0.00020547,2]
[337372515,1725633064791,-500.0,0.00020547,2]
[337372516,1725633064801,-500.0,0.00020547,2]
[337372517,1725633064811,-500.0,0.00020547,2]
[337372518,1725633064821,-500.0,0.00020547,2]
[337372519,1725633064831,-654.76,0.00020547,2]
[337372520,1725633064842,-500.0,0.00020547,2]
[337372521,1725633064854,-500.0,0.00020547,2]
[337372522,1725633064865,-500.0,0.00020547,2]
[337372523,1725633064876,-500.0,0.00020547,2]
[337372524,1725633064886,-500.0,0.00020547,2]
[337372525,1725633064896,-500.0,0.00020547,2]
[337372526,1725633064906,-500.0,0.00020547,2]
[337372527,1725633064924,-500.0,0.00020547,2]
[337372528,1725633064944,-838.95,0.00020547,2]
[337372529,1725633064961,-530.03,0.00020547,2]
[337372530,1725633064970,-500.0,0.00020547,2]
[337372531,1725633064980,-500.0,0.00020547,2]
[337372532,1725633064991,-500.0,0.00020547,2]
[337372533,1725633065001,-887.2,0.00020547,2]
[337372534,1725633065011,-500.0,0.00020547,2]
[337372535,1725633065021,-1319.15,0.00020547,2]
[337372536,1725633065037,-500.0,0.00020547,2]
[337372537,1725633065047,-733.76,0.00020547,2]
[337372538,1725633065057,-778.88,0.00020547,2]
[337372539,1725633065067,-158.49291514,0.00020547,2]
[337372540,1725633065077,-808.090116,0.00020547,2]
[337372541,1725633065087,-808.090116,0.00020547,2]
[337372542,1725633065098,-500.0,0.00020547,2]
[337372543,1725633065108,-151.0,0.00020547,2]
[337372544,1725633065118,-500.0,0.00020547,2]
[337372545,1725633065128,-500.0,0.00020547,2]
[337372546,1725633065138,-500.0,0.00020547,2]
[337372547,1725633065149,-500.0,0.00020547,2]
[337372548,1725633065163,-500.0,0.00020547,2]
[337372549,1725633065174,-500.0,0.00020547,2]
[337372550,1725633065184,-500.0,0.00020547,2]
[337372551,1725633065197,-604.59,0.00020547,2]
[337372552,1725633065207,-500.0,0.00020547,2]
[337372553,1725633065218,-500.0,0.00020547,2]
[337372554,1725633065229,-500.0,0.00020547,2]
[337372555,1725633065239,-1694.83,0.00020547,2]
[337372556,1725633065249,-500.0,0.00020547,2]
[337372557,1725633065259,-500.0,0.00020547,2]
[337372558,1725633065269,-1172.36,0.00020547,2]
[337372559,1725633065281,-500.0,0.00020547,2]
[337372560,1725633065292,-500.0,0.00020547,2]
[337372561,1725633065301,-500.0,0.00020547,2]
[337372562,1725633065311,-500.0,0.00020547,2]
[337372563,1725633065321,-1096.18,0.00020547,2]
[337372564,1725633065331,-500.0,0.00020547,2]
[337372565,1725633065342,-500.0,0.00020547,2]
[337372566,1725633065352,-1295.54,0.00020547,2]
[337372567,1725633065363,-500.0,0.00020547,2]
[337372568,1725633065373,-500.0,0.00020547,2]
[337372569,1725633065382,-500.0,0.00020547,2]
[337372570,1725633065393,-500.0,0.00020547,2]
[337372571,1725633065402,-542.16,0.00020547,2]
[337372572,1725633065412,-824.9,0.00020547,2]
[337372573,1725633065421,-500.0,0.00020547,2]
[337372574,1725633065431,-500.0,0.00020547,2]
[337372575,1725633065441,-500.0,0.00020547,2]
[337372576,1725633065451,-1372.26,0.00020547,2]
[337372577,1725633065461,-620.98797445,0.00020547,2]
[337372578,1725633065472,-875.93,0.00020547,2]
[337372579,1725633065482,-500.0,0.00020547,2]
[337372580,1725633065492,-500.0,0.00020547,2]
[337372581,1725633065502,-505.6175626,0.00020547,2]
[337372582,1725633065512,-938.14,0.00020547,2]
[337372583,1725633065522,-500.0,0.00020547,2]
[337372584,1725633065534,-538.21,0.00020547,2]
[337372585,1725633065546,-500.0,0.00020547,2]
[337372586,1725633065555,-1940.83,0.00020547,2]
[337372587,1725633065565,-967.41,0.00020547,2]
[337372588,1725633065575,-500.0,0.00020547,2]
[337372589,1725633065585,-500.0,0.00020547,2]
[337372590,1725633065595,-1123.56,0.00020547,2]
[337372591,1725633065604,-500.0,0.00020547,2]
[337372592,1725633065614,-1551.08,0.00020547,2]
[337372593,1725633065624,-1400.39,0.00020547,2]
[337372594,1725633065634,-500.0,0.00020547,2]
[337372595,1725633065644,-895.372438,0.00020547,2]
[337372596,1725633065655,-500.0,0.00020547,2]
[337372597,1725633065664,-872.73,0.00020547,2]
[337372598,1725633065674,-895.372438,0.00020547,2]
[337372599,1725633065684,-500.0,0.00020547,2]
[337372600,1725633065694,-500.0,0.00020547,2]
[337372601,1725633065703,-513.44151539,0.00020547,2]
[337372602,1725633065713,-1118.58,0.00020547,2]
[337372603,1725633065723,-500.0,0.00020547,2]
[337372604,1725633065734,-1742.36,0.00020547,2]
[337372605,1725633065743,-1196.57,0.00020547,2]
[337372606,1725633065753,-588.87,0.00020547,2]
[337372607,1725633065763,-500.0,0.00020547,2]
[337372608,1725633065773,-1193.407379,0.00020547,2]
[337372609,1725633065787,-500.0,0.00020547,2]
[337372610,1725633065798,-1205.47,0.00020547,2]
[337372611,1725633065808,-1193.407379,0.00020547,2]
[337372612,1725633065819,-1576.49,0.00020547,2]
[337372613,1725633065834,-669.78,0.00020547,2]
[337372614,1725633065844,-500.0,0.00020547,2]
[337372615,1725633065854,-1881.02,0.00020547,2]
[337372616,1725633065865,-500.0,0.00020547,2]
[337372617,1725633065876,-500.0,0.00020547,2]
[337372618,1725633065887,-2921.03,0.00020547,2]
[337372619,1725633065898,-500.0,0.00020547,2]
[337372620,1725633065909,-500.0,0.00020547,2]
[337372621,1725633065927,-500.0,0.00020547,2]
[337372622,1725633065938,-500.0,0.00020547,2]
[337372623,1725633065948,-500.0,0.00020547,2]
[337372624,1725633065960,-500.0,0.00020547,2]
[337372625,1725633065970,-1113.21,0.00020547,2]
[337372626,1725633065981,-5040.87,0.00020547,2]
[337372627,1725633065991,-500.0,0.00020547,2]
[337372628,1725633066003,-1367.3,0.00020547,2]
[337372629,1725633066014,-1779.99,0.00020547,2]
[337372630,1725633066027,-500.0,0.00020547,2]
[337372631,1725633066037,-500.0,0.00020547,2]
[337372632,1725633066048,-500.0,0.00020547,2]
[337372633,1725633066061,-2052.33,0.00020547,2]
[337372634,1725633066072,-865.203504,0.00020547,2]
[337372635,1725633066083,-1835.81,0.00020547,2]
[337372636,1725633066094,-894.29,0.00020547,2]
[337372637,1725633066106,-500.0,0.00020547,2]
[337372638,1725633066118,-500.0,0.00020547,2]
[337372639,1725633066132,-2311.24,0.00020547,2]
[337372640,1725633066141,-500.0,0.00020547,2]
[337372641,1725633066155,-865.203504,0.00020547,2]
[337372642,1725633066166,-191.453808,0.00020547,2]
[337372643,1725633066176,-500.0,0.00020547,2]
[337372644,1725633066187,-1904.19,0.00020547,2]
[337372645,1725633066198,-191.453808,0.00020547,2]
[337372646,1725633066209,-825.48,0.00020547,2]
[337372647,1725633066220,-612.50000002,0.00020547,2]
[337372648,1725633066231,-500.0,0.00020547,2]
[337372649,1725633066242,-500.0,0.00020547,2]
[337372650,1725633066253,-1074.86,0.00020547,2]
[337372651,1725633066264,-500.0,0.00020547,2]
[337372652,1725633066277,-539.08,0.00020547,2]
[337372653,1725633066289,-1410.65,0.00020547,2]
[337372654,1725633066300,-500.0,0.00020547,2]
[337372655,1725633066310,-500.0,0.00020547,2]
[337372656,1725633066321,-500.0,0.00020547,2]
[337372657,1725633066332,-1156.0,0.00020547,2]
[337372658,1725633066342,-1951.7,0.00020547,2]
[337372659,1725633066352,-151.0,0.00020547,2]
[337372660,1725633066363,-1221.14,0.00020547,2]
[337372661,1725633066374,-1908.07,0.00020547,2]
[337372662,1725633066385,-1392.43,0.00020547,2]
[337372663,1725633066394,-500.0,0.00020547,2]
[337372664,1725633066404,-500.0,0.00020547,2]
[337372665,1725633066415,-151.0,0.00020547,2]
[337372666,1725633066425,-965.53,0.00020547,2]